Cogmind - Beta 14 @@@ ROGUE MODE // 2025.01.08 @ 17:32:25 Player: lazy_engineer Result: Destroyed by D-53 Grenadier with Mini Grenade Launcher Performance ------------- Evolutions (0) 0 Regions Visited (2) 400 Robots Destroyed (11) 55 Value Destroyed (363) 363 Prototype IDs (0) 0 Alien Tech Used (0) 0 Bonus (0) 0 TOTAL SCORE: 818 Bonus ------- None Cogmind --------- Core Integrity 0/250 Matter 31/300 Energy 90/100 System Corruption 0% Temperature Cool (0) Movement Hovering (60) Location -10/Mines Parts ------- > --- POWER (1) -------- (None) > --- PROPULSION (2) --- Hover Unit > --- UTILITY (2) ------ Small Storage Unit > --- WEAPON (2) ------- Light Assault Rifle > --- INVENTORY (8) ---- Light Ion Engine Flight Unit High-capacity Matter Pod (0) Medium Laser Mining Laser Peak State ------------ > --- POWER ------------ Ion Engine > --- PROPULSION ------- Light Treads Light Treads > --- UTILITY ---------- Small Storage Unit Medium Storage Unit > --- WEAPON ----------- Grenade Launcher Grenade Launcher > --- INVENTORY -------- Light Ion Engine Hover Unit Hover Unit Hover Unit Flight Unit High-capacity Matter Pod Medium Laser Assault Rifle Light Assault Rifle Mining Laser [Rating: 8] Favorites ----------- Power Ion Engine Engine Ion Engine Propulsion Light Treads Treads Light Treads Hover Unit Hover Unit Utility Small Storage Unit Storage Small Storage Unit Weapon Grenade Launcher Energy Gun Medium Laser Ballistic Gun Light Assault Rifle Launcher Grenade Launcher Build | -11 -10 -10 ------- Run | Yrd Mat Min Slots Evolved . | . . . Power . | . . . Propulsion . | . . . Utility . | . . . Weapon . | . . . Parts Attached 15 | 6 3 6 Power 1 | 1 . . Engine 1 | 1 . . Core . | . . . Reactor . | . . . Propulsion 5 | 2 . 3 Treads 2 | 2 . . Leg . | . . . Wheel . | . . . Hover 3 | . . 3 Flight . | . . . Utility 2 | 1 1 . Device . | . . . Storage 2 | 1 1 . Processor . | . . . Hackware . | . . . Protection . | . . . Artifact . | . . . Weapon 7 | 2 2 3 Energy Gun 1 | . . 1 Energy Cannon . | . . . Ballistic Gun 4 | 2 . 2 Ballistic Cannon . | . . . Launcher 2 | . 2 . Special Weapon . | . . . Impact Weapon . | . . . Slashing Weapon . | . . . Piercing Weapon . | . . . Special Melee Weapon . | . . . Unidentified Prototypes . | . . . Parts Lost 8 | . . 8 Power 1 | . . 1 Propulsion 4 | . . 4 Utility . | . . . Weapon 3 | . . 3 Highest Loss Streak 8 | . . 8 To Critical Strikes . | . . . Average Slot Usage (%) 92 | . 89 98 Engine 14 | . 14 14 Treads 26 | . 28 25 Storage 21 | . 17 28 Ballistic Gun 3 | . 5 2 Launcher 23 | . 22 25 Peak Build Rating 8 | 6 7 8 Average Rating 6 | 4 6 7 On Entrance 4 | . 6 7 Naked Turns . | . . . Heaviest Build 26 | 13 26 26 Greatest Support 40 | 40 40 40 Greatest Overweight (x) . | . . . Average Overweight (x) . | . . . Largest Inventory Capacity 10 | 8 10 10 Average Capacity 8 | 6 8 9 Most Carried 10 | 4 9 10 Average Carried 7 | 1 7 9 Final Capacity 10 | 8 10 8 Final Carried 9 | 2 9 5 Class Distribution -------------------- 100% | Mutant Dominant Class ---------------- Mutant | -10/Materials Mutant | -10/Mines Resources | -11 -10 -10 ----------- Run | Yrd Mat Min Matter Collected 279 | 233 46 . Remotely . | . . . Salvage Created 129 | . 122 7 Parts 14 | . 11 3 Haulers Intercepted . | . . . Recyclers Shooed 1 | . 1 . Parts Field Recycled . | . . . Retrieved Matter . | . . . Parts Self-Destructed . | . . . Prevented . | . . . Kills | -11 -10 -10 ------- Run | Yrd Mat Min Combat Hostiles Destroyed 10 | . 7 3 AOE 10 | . 7 3 Classes Destroyed 3 | . 2 1 Operator 1 | . 1 . Swarmer 3 | . . 3 Grunt 7 | . 7 . Best Kill Streak 4 | . 4 3 Combat Bots Only 4 | . 4 3 Max Kills in Single Turn 3 | . 3 3 Gunslinging . | . . . Exploded 3 | . 3 3 Melee . | . . . Uniques/NPCs Destroyed . | . . . Combat | -11 -10 -10 -------- Run | Yrd Mat Min Hostile Shots Fired 44 | . 24 20 Missed 9 | . 9 . Damage Taken 1086 | . 266 820 Core 253 | . 6 247 Absorbed by Shields . | . . . Core Remaining (%) 100 | 100 . . Volleys Fired 15 | . 10 5 Largest 2 | . 2 2 Hottest 70 | . 60 70 Shots Fired 29 | . 20 9 Gun 5 | . . 5 Cannon . | . . . Launcher 24 | . 20 4 Special . | . . . Kinetic 4 | . . 4 Thermal 1 | . . 1 Explosive 24 | . 20 4 Electromagnetic . | . . . Robot Hit Streak 5 | . 5 2 Robot Miss Streak 3 | . 1 3 Penetration Max . | . . . Secondary Targets . | . . . Shots Hit Robots 13 | . 10 3 Core Hits 23 | . 17 6 Critical Kills . | . . . Critical Parts Destroyed . | . . . Critical Strikes . | . . . Melee Attacks . | . . . Impact . | . . . Slashing . | . . . Piercing . | . . . Sneak Attacks . | . . . Combat Hostiles . | . . . Follow-up Attacks . | . . . Damage Inflicted 983 | . 745 238 Guns 16 | . . 16 Cannons . | . . . Explosions 965 | . 743 222 Melee . | . . . Ramming 2 | . 2 . Kinetic 16 | . . 16 Thermal 87 | . . 87 Explosive 878 | . 743 135 Electromagnetic . | . . . Impact . | . . . Slashing . | . . . Piercing . | . . . Highest Corruption . | . . . Average Corruption . | . . . Corruption Purged . | . . . Corruption Blocked . | . . . Overload Shots . | . . . Overflow Damage . | . . . Projectiles . | . . . Explosions . | . . . Melee . | . . . Knockbacks . | . . . Impact . | . . . Kinetic . | . . . Secondary . | . . . Self-Inflicted Damage 96 | . 64 32 Shots 6 | . 5 1 Rammed 2 | . 2 . Targets Rammed 2 | . 2 . Kicked . | . . . Crushed . | . . . Highest Temperature 39 | . 39 30 Average Temperature 17 | . 18 15 Received Heat Transfer 117 | . 117 . Siege Activations . | . . . Robots Corrupted . | . . . Combat Hostiles . | . . . Parts Fried . | . . . Impact Corruptions . | . . . Robots Melted . | . . . Combat Hostiles . | . . . Parts Melted . | . . . Heat Transferred 100 | . . 100 Parts Sabotaged . | . . . Parts Stolen . | . . . Parts Stripped . | . . . Power Chain Reactions . | . . . Alert | -11 -10 -10 ------- Run | Yrd Mat Min Peak Influence 346 | . 346 268 Initial 134 | . . 134 Average 167 | . 141 256 Maximum Alert Level 1 | . 1 1 Low Security (%) 54 | 100 78 2 Level 1 45 | . 21 97 Level 2 . | . . . Level 3 . | . . . Level 4 . | . . . Level 5 . | . . . High Security . | . . . Max Security . | . . . Squads Dispatched 4 | . 4 . Investigation 1 | . 1 . Extermination . | . . . Reinforcement 3 | . 3 . Assault . | . . . Garrison . | . . . Intercept . | . . . Searches Triggered . | . . . Construction Impeded . | . . . Haulers Reinforced . | . . . Active Scanning Responses . | . . . Cargo Convoy Interrupts . | . . . Stealth | -11 -10 -10 --------- Run | Yrd Mat Min Distress Signals 1 | . 1 . Communications Jammed . | . . . Distress Signals . | . . . Times Spotted 13 | . 11 2 Peak Tracking Total 5 | . 5 2 Tactical Retreats . | . . . Traps | -11 -10 -10 ------- Run | Yrd Mat Min Traps Triggered . | . . . Indirectly . | . . . Trap Hack Attempts . | . . . Triggered . | . . . Disarmed . | . . . Reprogrammed . | . . . Reused . | . . . Traps Extracted . | . . . Installed . | . . . Triggered . | . . . Machines | -11 -10 -10 ---------- Run | Yrd Mat Min Machines Disabled 4 | . 1 3 Max in Single Turn 3 | . 1 3 Machines Repaired . | . . . Machines Dismantled . | . . . Machines Sabotaged . | . . . Overloaded Fab Kills . | . . . Hacking | -11 -10 -10 --------- Run | Yrd Mat Min Machines Accessed 1 | . 1 . Terminals 1 | . 1 . Fabricators . | . . . Repair Stations . | . . . Recycling Units . | . . . Scanalyzers . | . . . Garrison Access . | . . . Total Hacks 2 | . 2 . Successful . | . . . Failed 2 | . 2 . Catastrophic 1 | . 1 . Database Lockouts . | . . . Manual 2 | . 2 . Terminals 2 | . 2 . Fabricators . | . . . Repair Stations . | . . . Recycling Units . | . . . Scanalyzers . | . . . Garrison Access . | . . . Terminal Hacks . | . . . Fabricator Hacks . | . . . Repair Station Hacks . | . . . Recycling Unit Hacks . | . . . Scanalyzer . | . . . Garrison Access Hacks . | . . . Unauthorized Hacks . | . . . Terminals . | . . . Fabricators . | . . . Repair Stations . | . . . Recycling Units . | . . . Scanalyzers . | . . . Garrison Access . | . . . Data Cores Recovered . | . . . Used . | . . . Hacking Detections 1 | . 1 . Full Trace Events 1 | . 1 . Feedback Events . | . . . Feedback Blocked . | . . . Robot Schematics Acquired . | . . . Robots Built . | . . . Authchips . | . . . Time . | . . . Total Robot Build Rating . | . . . Part Schematics Acquired . | . . . Parts Built . | . . . Authchips . | . . . Time . | . . . Total Part Build Rating . | . . . Parts Repaired . | . . . Time . | . . . Parts Recycled . | . . . Recycled Matter . | . . . Retrieved Matter . | . . . Retrieved Components . | . . . Parts Scanalyzed . | . . . Part Schematics Acquired . | . . . Parts Damaged . | . . . Bothacking | -11 -10 -10 ------------ Run | Yrd Mat Min Used RIF Installer . | . . . Robots Hacked . | . . . Non-combat . | . . . Combat . | . . . Robot Hacks Applied . | . . . Relay Couplers Released . | . . . Fabnet Peak Effective % . | . . . Robots Rewired . | . . . Allies Hacked . | . . . Hacks Repelled . | . . . Allies | -11 -10 -10 -------- Run | Yrd Mat Min Total Allies . | . . . Largest Group . | . . . Highest-Rated Group . | . . . Highest-Rated Ally . | . . . Total Orders . | . . . Ally Attacks . | . . . Total Damage . | . . . Kills . | . . . Allies Corrupted . | . . . Allies Melted . | . . . Intel | -11 -10 -10 ------- Run | Yrd Mat Min Robot Analysis Total . | . . . Derelict Logs Recovered . | . . . Drone Launches . | . . . Drone Recoveries . | . . . Exploration | -11 -10 -10 ------------- Run | Yrd Mat Min Turns Passed 585 | 55 328 202 Spaces Moved 326 | 31 178 117 Core 8 | 8 . . Treads 311 | 23 178 110 Legs . | . . . Wheels . | . . . Hover 7 | . . 7 Flight . | . . . Fastest Speed 50 | 50 160 56 Average Speed 155 | 131 160 153 Slowest Speed 160 | 160 160 160 Overloaded Moves . | . . . Propulsion Burnouts . | . . . Robots Hopped . | . . . Cave-ins Triggered . | . . . Exploration Rate (%) 24 | 4 35 34 Regions Visited 2 Branch Regions 1 Pre-discovered Areas . | . . . Known Exits Taken . | . . . Unknown Exits Taken 2 | 1 1 . Scrap Searched . | . . . Spaces Dug . | . . . Terrain Destroyed 137 | . 106 31 Melee . | . . . Projectile . | . . . AOE 137 | . 106 31 Terrain Rammed . | . . . Walls Destroyed . | . . . Machines Disabled . | . . . Actions | -11 -10 -10 --------- Run | Yrd Mat Min Total 376 | 46 199 131 Wait . | . . . Move 324 | 30 177 117 Hop . | . . . Pick Up 17 | 9 7 1 Fast Attach 1 | . 1 . Attach 12 | 6 . 6 Detach 1 | . . 1 Swap 2 | . 2 . Drop 2 | 1 . 1 Fire 15 | . 10 5 Melee . | . . . Ram . | . . . Kick . | . . . Crush 2 | . 2 . Escape Stasis . | . . . Rewire . | . . . Trap . | . . . Miscellaneous . | . . . Route ------- -11/Scrapyard -10/Materials -10/Mines History --------- Turn | Location | Event 20 | -11/Scrapyard | Discovered new exit (range 16) 56 | -11/Scrapyard | Entered Materials 311 | -10/Materials | Build established: Mutant 364 | -10/Materials | Discovered new exit (range 7) 384 | -10/Materials | Entered Mines 530 | -10/Mines | Assembled infested the area 576 | -10/Mines | Core integrity fell below 50% 585 | -10/Mines | Core integrity fell below 20% 586 | -10/Mines | Destroyed by D-53 Grenadier with Mini Grenade Launcher Last Messages --------------- 00384_ S-10 Pest destroyed. 00384_ Seismic Survey Station disabled. 00384_ Core Extractor disabled. 00399_ Acquired Flight Unit. 00530_ ALERT: Infestation in the mines, dispatching Demolisher response squad. 00564_ C-30 ARC bursts open, deploying its payload. 00564_ D-53 Grenadier unfolds itself. 00565_ Grenade Launcher destroyed. 00567_ Lgt. Treads destroyed. 00567_ Grenade Launcher destroyed. 00569_ Lgt. Treads destroyed. 00571_ Assault Rifle destroyed. 00572_ The unstable cave ceiling collapses. 00580_ Dropped Med. Storage Unit. 00581_ Ion Engine destroyed. 00581_ Hover Unit destroyed. 00582_ The unstable cave ceiling collapses. 00585_ Hover Unit destroyed. 00586_ The unstable cave ceiling collapses. Map ----- +----------------------------------------------------+ | ##???????????????????????????????????????? | | ????? #????????????????????????????????? | | #???? #????????????????????????????????? | | #???? ##???????????????????????????????? | | #???# ##??????????????????????????????? | | #??# #??????????????????????????????? | | #?# ##?????????????????????????????? | | ## ##????????????????????????????? | | ### ?????????????????????????? | | ?????????????????????????? | | ??????????????????????????? | | #????????????????????????????? | | #?????????????????????????????? | | #??????????????????????????????? | | #??????? #?????????????????????? | | #??????? #?????????????????????? | | #??????# #?????????????????????? | | # #??????# #?????????????????????? | | ## ##??????# ?????????????????????? | | ?## #???????# #?????????????????????? | | ??# #???????# #??######?????????????? | | ??# ##???????# #??# # ####??????????? | | ??# ##????????# #### #####??????? | | ??# #?????????# # ##?????? | | ??# #?????????# # ##????? | | ??## #??????#### # @ ##???? | | ???# ######## # #???? | | ???# % d #???? | | ???# d ! ##??? | | ???########### ##?? | | ?????????????## # #?? | | ??????????????## ## # #?? | | ???????????????## ##### ##?? | | ????????????????## ####??##########??? | | ?????????????????## #?????????????????? | | ??????????????????# #?????????????????? | | ??????????????????## ##?????????????????? | | ???????????????????####??????????????????? | | ?????????????????????????????????????????? | | ?????????????????????????????????????????? | | | | | | | | | | | | | | | | | | | | | +----------------------------------------------------+ Best States ------------- Heat Dissipation 25 Energy Generation 10 Energy Capacity 250 Matter Stores 273 Matter Capacity 300 Sight Range 16 Terrain Scan Density 10 Evasion (%) 40 Recoil Reduction 2 Item Schematics ----------------- None Robot Schematics ------------------ None Fabricated ------------ Nothing Alien Tech Used ----------------- None Achievements -------------- None Challenges ------------ None Game ------ Seed HardlightTachyonImmobilizer Manual? 0 Play Time 00:06:54 Cumulative 54.4 hours Start 2025.01.08 @ 17:27:23 End 2025.01.08 @ 17:32:25 Sessions 1 Manual Loads 0 Difficulty Rogue Special Mode None Game No. 109 Rogue 109 Adventurer 0 Explorer 0 Win Type - Total 0 Types 0/0/0/0/0/0/0/0/0 Lore% 19 Gallery% 34 Achievement% 30 Wizard Run 0 Options --------- Layout 0 ASCII 0 Keyboard 0 Movement Mouse Keybinds 0 Fullscreen 1 Font 24/Smallcaps Map View 76x50 Zoom Use 0% Tactical HUD 1 Map Filters NONE Filters NONE Steam 1 RUN: 12fecf43-2165-44f3-9a52-d6f6871c3271